Cogmind - Beta 16.1 @@@ ROGUE MODE // 2026.03.11 @ 17:27:30 Player: CometVoid Result: Self-destructed Performance ------------- Evolutions (2) 1000 Regions Visited (3) 600 Robots Destroyed (36) 180 Value Destroyed (817) 817 Prototype IDs (0) 0 Alien Tech Used (0) 0 Bonus (-9) -9 TOTAL SCORE: 2588 Bonus ------- Friendly Fire -9 Cogmind --------- Core Integrity 402/550 Matter 17/300 Energy 200/200 System Corruption 0% Temperature Cool (0) Movement Hovering (116) Ox1 Location -8/Materials Parts ------- > --- POWER (2) -------- Backup Power I Subdweller Power Source > --- PROPULSION (3) --- Hover Unit Airjet > --- UTILITY (4) ------ Medium Storage Unit Improved Sensor Array Improved Signal Interpreter Hacking Suite > --- WEAPON (2) ------- Ripper > --- INVENTORY (10) --- Light Treads Spiked Treads Subdweller Monowheel ECM Suite Field Laser Subdweller Beam Cannon Battle Rifle Rocket Launcher Mini Grenade Launcher Plasma Cutter Peak State ------------ > --- POWER ------------ Backup Power I Subdweller Power Source > --- PROPULSION ------- Hover Unit Hover Unit Airjet > --- UTILITY ---------- Medium Storage Unit Improved Sensor Array Improved Signal Interpreter Hacking Suite > --- WEAPON ----------- Flamer Ripper > --- INVENTORY -------- Light Treads Spiked Treads Subdweller Monowheel ECM Suite Field Laser Subdweller Beam Cannon Battle Rifle Rocket Launcher Mini Grenade Launcher Plasma Cutter [Rating: 25] Favorites ----------- Power Light Ion Engine Engine Light Ion Engine Propulsion Light Treads Treads Light Treads Wheel Subdweller Monowheel Hover Unit Hover Unit Utility Medium Storage Unit Device Seismic Detector Storage Medium Storage Unit Processor Improved Signal Interpreter Hackware Hacking Suite Weapon Beam Rifle Energy Gun Beam Rifle Ballistic Gun Battle Rifle Launcher Mini Grenade Launcher Special Weapon Flamer Slashing Weapon Ripper Build | -11 -10 -10 -8 ------- Run | Yrd Mat Sub Mat Slots Evolved 4 | . . . 4 Power 1 | . . . 1 Propulsion 1 | . . . 1 Utility 2 | . . . 2 Weapon . | . . . . Parts Attached 31 | 7 7 11 6 Power 4 | 1 1 2 . Engine 4 | 1 1 2 . Core . | . . . . Reactor . | . . . . Propulsion 9 | 2 . 4 3 Treads 5 | 2 . 3 . Leg . | . . . . Wheel 1 | . . 1 . Hover 3 | . . . 3 Flight . | . . . . Utility 6 | 2 2 . 2 Device 2 | 1 . . 1 Storage 2 | 1 1 . . Processor 1 | . . . 1 Hackware 1 | . 1 . . Protection . | . . . . Artifact . | . . . . Weapon 12 | 2 4 5 1 Energy Gun 5 | 2 3 . . Energy Cannon . | . . . . Ballistic Gun 1 | . . 1 . Ballistic Cannon . | . . . . Launcher 2 | . 1 1 . Special Weapon 3 | . . 3 . Impact Weapon . | . . . . Slashing Weapon 1 | . . . 1 Piercing Weapon . | . . . . Special Melee Weapon . | . . . . Unidentified Prototypes . | . . . . Parts Lost 6 | . 1 3 2 Power 1 | . 1 . . Propulsion 4 | . . 3 1 Utility . | . . . . Weapon 1 | . . . 1 Highest Loss Streak 2 | . 1 2 2 To Critical Strikes . | . . . . Average Backups 8 | 4 8 9 9 Power . | . . . . Propulsion 3 | 3 3 3 3 Utility 1 | . . 1 1 Weapon 2 | . 2 2 5 Tool/Special . | . . . . Unused Backups 14 | . 7 3 4 Power 1 | . . 1 . Propulsion 8 | . 6 2 . Utility 1 | . . . 1 Weapon 4 | . 1 . 3 Tool/Special . | . . . . Average Slot Usage (%) 97 | . 99 99 85 Engine 13 | . 13 14 11 Treads 25 | . 28 27 11 Hover 1 | . . . 9 Device 8 | . 13 . 8 Storage 13 | . 14 14 9 Hackware 6 | . . 14 9 Energy Gun 13 | . 20 9 . Ballistic Gun 1 | . . 4 . Launcher 8 | . 7 12 3 Special Weapon 2 | . . 2 11 Peak Build Rating 25 | 7 12 15 25 Average Rating 12 | 4 10 12 21 On Entrance 8 | . 7 12 14 Avg Prop Armor Cover (%) 15 | . . 15 . Naked Turns . | . . . . Heaviest Build 22 | 11 20 19 22 Greatest Support 40 | 40 40 40 40 Greatest Overweight (x) 1 | . . . 1 Average Overweight (x) . | . . . . Largest Inventory Capacity 10 | 8 10 10 10 Average Capacity 9 | 6 8 10 10 Most Carried 10 | 6 10 10 10 Average Carried 8 | 4 8 9 9 Final Capacity 10 | 8 10 10 10 Final Carried 10 | 6 10 10 10 Class Distribution -------------------- 95% | Mutant 4% | Scavenger-Mutant Dominant Class ---------------- Mutant | -10/Materials Mutant | -10/Subcaves Mutant | -8/Materials Resources | -11 -10 -10 -8 ----------- Run | Yrd Mat Sub Mat Matter Collected 590 | 149 256 159 26 Remotely . | . . . . Salvage Created 988 | 10 760 144 74 Parts 55 | 3 40 10 2 Haulers Intercepted 1 | . 1 . . Recyclers Shooed 4 | . 4 . . Parts Field Recycled . | . . . . Retrieved Matter . | . . . . Parts Self-Destructed 3 | . . 3 . Prevented . | . . . . Parts Restored . | . . . . Kills | -11 -10 -10 -8 ------- Run | Yrd Mat Sub Mat Combat Hostiles Destroyed 24 | . 14 8 2 Guns 9 | . 7 2 . Cannons 1 | . . . 1 AOE 11 | . 5 6 . Classes Destroyed 10 | 1 7 2 . Builder 2 | . 2 . . Tunneler 1 | 1 . . . Hauler 1 | . 1 . . Recycler 4 | . 4 . . Operator 2 | . 2 . . Watcher 2 | . 2 . . Swarmer 9 | . 6 3 . Grunt 8 | . 8 . . Sentry 3 | . . 1 2 Subdweller 4 | . . 4 . Best Kill Streak 7 | 1 7 3 1 Combat Bots Only 4 | . 4 3 1 Max Kills in Single Turn 3 | 1 3 2 1 Gunslinging . | . . . . Exploded 2 | . 2 2 . Melee . | . . . . Uniques/NPCs Destroyed . | . . . . Combat | -11 -10 -10 -8 -------- Run | Yrd Mat Sub Mat Hostile Shots Fired 100 | . 54 27 19 Missed 26 | . 13 8 5 Hits 74 | . 41 19 14 Projectile 74 | . 41 19 14 Critical Strikes 5 | . 1 2 2 Damage Taken 1232 | . 429 497 306 Core 295 | . 60 87 148 Absorbed by Shields . | . . . . Core Remaining (%) 70 | 100 . 41 . Volleys Fired 82 | 1 51 22 8 Largest 2 | 2 2 2 2 Hottest 120 | 80 112 86 120 Shots Fired 134 | 2 82 41 9 Gun 95 | 2 74 19 . Cannon . | . . . . Launcher 30 | . 8 22 . Special 9 | . . . 9 Kinetic 11 | . . 11 . Thermal 93 | 2 74 8 9 Explosive 30 | . 8 22 . Electromagnetic . | . . . . Robot Hit Streak 10 | 2 10 8 7 Robot Miss Streak 4 | . 4 1 1 Penetration Max . | . . . . Secondary Targets 1 | . 1 . . Max Gunslinging Chain 1 | . 1 . . Shots Hit Robots 83 | 2 56 16 9 Core Hits 46 | 1 30 12 3 Critical Kills . | . . . . Critical Parts Destroyed . | . . . . Critical Strikes 6 | . 5 1 . Burn 5 | . 5 . . Destroy 1 | . . 1 . Melee Attacks 2 | . . . 2 Impact . | . . . . Slashing 2 | . . . 2 Piercing . | . . . . Sneak Attacks . | . . . . Combat Hostiles . | . . . . Follow-up Attacks . | . . . . Damage Inflicted 2333 | 21 1384 796 132 Guns 849 | 21 710 118 . Cannons . | . . . . Explosions 1352 | . 674 678 . Melee 41 | . . . 41 Ramming . | . . . . Kinetic 47 | . . 47 . Thermal 893 | 21 710 71 91 Explosive 1352 | . 674 678 . Electromagnetic . | . . . . Impact . | . . . . Slashing 41 | . . . 41 Piercing . | . . . . Highest Corruption . | . . . . Average Corruption . | . . . . Corruption Purged . | . . . . Corruption Blocked . | . . . . Overload Shots . | . . . . Overflow Damage 39 | . 21 7 11 Projectiles . | . . . . Explosions 28 | . 21 7 . Melee 11 | . . . 11 Knockbacks . | . . . . Impact . | . . . . Kinetic . | . . . . Secondary . | . . . . Self-Inflicted Damage 93 | . . 93 . Shots 6 | . . 6 . Rammed 1 | . 1 . . Targets Rammed 1 | . 1 . . Kicked . | . . . . Crushed . | . . . . Highest Temperature 378 | 18 378 15 148 Average Temperature 95 | 12 102 9 63 Received Heat Transfer 348 | . 189 87 72 Effects 1 | . 1 . . Shutdowns 1 | . 1 . . Siege Activations . | . . . . Martial Activations . | . . . . Shielding Activations . | . . . . Robots Disrupted . | . . . . Combat Hostiles . | . . . . Robots Corrupted . | . . . . Combat Hostiles . | . . . . Parts Fried . | . . . . Impact Corruptions . | . . . . Robots Melted 3 | . 2 . 1 Combat Hostiles 3 | . 2 . 1 Parts Melted 7 | . 6 . 1 Heat Transferred 3015 | 50 2183 185 597 Parts Sabotaged . | . . . . Parts Stolen . | . . . . Parts Stripped . | . . . . Power Chain Reactions . | . . . . Alert | -11 -10 -10 -8 ------- Run | Yrd Mat Sub Mat Maximum Alert Level 1 | . 1 . . Low Security (%) 90 | 100 87 . 100 Level 1 9 | . 12 . . Level 2 . | . . . . Level 3 . | . . . . Level 4 . | . . . . Level 5 . | . . . . High Security . | . . . . Max Security . | . . . . Peak Influence 232 | 5 232 . 45 Initial 3 | . 3 . . Average 96 | . 122 . 11 Influence Increases 727 | 5 537 90 95 Destroy 0b10 Robot/C 400 | . 280 80 40 Destroy 0b10 Robot/NC 60 | 5 55 . . Destroy Leader 96 | . 66 10 20 Successful Hack 44 | . 39 . 5 Disable Machine 60 | . 30 . 30 Destroy Structure 52 | . 52 . . Lose Combat Pursuer 15 | . 15 . . Influence Decreases 727 | . 420 212 95 Entered New Map 61 | . 2 59 . Time Decay 646 | . 408 143 95 Lost Part 20 | . 10 10 . Squads Dispatched 5 | . 3 . 2 Investigation 3 | . 2 . 1 Extermination . | . . . . Reinforcement 2 | . 1 . 1 Assault . | . . . . Garrison . | . . . . Intercept . | . . . . Searches Triggered . | . . . . Construction Impeded . | . . . . Haulers Reinforced . | . . . . Active Scanning Responses . | . . . . Cargo Convoy Interrupts . | . . . . Stealth | -11 -10 -10 -8 --------- Run | Yrd Mat Sub Mat Distress Signals 2 | . 2 . . Communications Jammed . | . . . . Distress Signals . | . . . . Times Spotted 36 | . 19 8 9 Peak Tracking Total 8 | . 5 3 8 Tactical Retreats 1 | . 1 . . Traps | -11 -10 -10 -8 ------- Run | Yrd Mat Sub Mat Traps Triggered 3 | . . 2 1 Indirectly . | . . . . Trap Hack Attempts . | . . . . Triggered . | . . . . Disarmed . | . . . . Reprogrammed . | . . . . Reused . | . . . . Traps Extracted . | . . . . Installed . | . . . . Triggered . | . . . . Machines | -11 -10 -10 -8 ---------- Run | Yrd Mat Sub Mat Machines Disabled 4 | . 2 . 2 Max in Single Turn 1 | . 1 . 1 Machines Repaired . | . . . . Machines Dismantled 2 | . . . 2 Machines Sabotaged . | . . . . Overloaded Fab Kills . | . . . . Hacking | -11 -10 -10 -8 --------- Run | Yrd Mat Sub Mat Machines Accessed 8 | . 6 . 2 Terminals 7 | . 6 . 1 Fabricators . | . . . . Repair Stations 1 | . . . 1 Recycling Units . | . . . . Scanalyzers . | . . . . Garrison Access . | . . . . Total Hacks 29 | . 22 . 7 Successful 14 | . 11 . 3 Failed 14 | . 10 . 4 Catastrophic 3 | . 2 . 1 Database Lockouts 1 | . 1 . . Manual 27 | . 22 . 5 Terminals 27 | . 22 . 5 Fabricators . | . . . . Repair Stations 2 | . . . 2 Recycling Units . | . . . . Scanalyzers . | . . . . Garrison Access . | . . . . Terminal Hacks 10 | . 9 . 1 Part Schematic 7 | . 7 . . Terminal Index 2 | . 1 . 1 Alert Level 1 | . 1 . . Fabricator Hacks . | . . . . Repair Station Hacks 1 | . . . 1 Refit 1 | . . . 1 Recycling Unit Hacks . | . . . . Scanalyzer . | . . . . Garrison Access Hacks . | . . . . Unauthorized Hacks 3 | . 2 . 1 Terminals 3 | . 2 . 1 Botnet 3 | . 2 . 1 Fabricators . | . . . . Repair Stations . | . . . . Recycling Units . | . . . . Scanalyzers . | . . . . Garrison Access . | . . . . Data Cores Recovered . | . . . . Used . | . . . . Hacking Detections 7 | . 6 . 1 Full Trace Events 5 | . 5 . . Feedback Events . | . . . . Feedback Blocked . | . . . . Robot Schematics Acquired . | . . . . Robots Built . | . . . . Authchips . | . . . . Time . | . . . . Total Robot Build Rating . | . . . . Part Schematics Acquired 7 | . 7 . . Parts Built . | . . . . Authchips . | . . . . Time . | . . . . Total Part Build Rating . | . . . . Part Studies Acquired . | . . . . Parts Repaired . | . . . . Time . | . . . . Parts Recycled . | . . . . Recycled Matter . | . . . . Retrieved Matter . | . . . . Retrieved Components . | . . . . Parts Scanalyzed . | . . . . Part Schematics Acquired . | . . . . Parts Damaged . | . . . . Bothacking | -11 -10 -10 -8 ------------ Run | Yrd Mat Sub Mat Used RIF Installer . | . . . . Robots Hacked . | . . . . Non-combat . | . . . . Combat . | . . . . Robot Hacks Applied . | . . . . Relay Couplers Released . | . . . . Fabnet Peak Effective % . | . . . . Robots Rewired . | . . . . Allies Hacked . | . . . . Hacks Repelled . | . . . . Allies | -11 -10 -10 -8 -------- Run | Yrd Mat Sub Mat Total Allies . | . . . . Largest Group . | . . . . Highest-Rated Group . | . . . . Highest-Rated Ally . | . . . . Total Orders . | . . . . Ally Attacks . | . . . . Total Damage . | . . . . Kills . | . . . . Allies Corrupted . | . . . . Allies Melted . | . . . . Intel | -11 -10 -10 -8 ------- Run | Yrd Mat Sub Mat Active Infowar (turns) 1675 | 6 1366 . 303 Sensors 303 | . . . 303 Seismic 1372 | 6 1366 . . Robot Analysis Total . | . . . . Derelict Logs Recovered 2 | . . 2 . Drone Launches . | . . . . Drone Recoveries . | . . . . Exploration | -11 -10 -10 -8 ------------- Run | Yrd Mat Sub Mat Turns Passed 2770 | 77 1406 957 330 Spaces Moved 1267 | 40 531 522 174 Core 5 | 5 . . . Treads 1150 | 35 531 503 81 Legs . | . . . . Wheels 19 | . . 19 . Hover 93 | . . . 93 Flight . | . . . . Fastest Speed 50 | 50 160 110 52 Average Speed 153 | 146 160 158 118 Slowest Speed 160 | 160 160 160 160 Overloaded Moves . | . . . . Propulsion Burnouts . | . . . . Robots Hopped . | . . . . Potential Cave-ins . | . . . . Cave-ins Triggered . | . . . . Exploration Rate (%) 31 | 3 70 35 19 Regions Visited 3 Branch Regions 1 Pre-discovered Areas 1 | . . 1 . Known Exits Taken . | . . . . Unknown Exits Taken 3 | 1 1 1 . Scrap Searched 5 | . . 5 . Spaces Dug 34 | . . 34 . Terrain Destroyed 195 | . 53 142 . Melee . | . . . . Projectile 1 | . . 1 . AOE 194 | . 53 141 . Terrain Rammed . | . . . . Walls Destroyed . | . . . . Machines Disabled . | . . . . Actions | -11 -10 -10 -8 --------- Run | Yrd Mat Sub Mat Total 1926 | 53 1009 612 252 Wait 478 | . 394 40 44 Move 1264 | 39 530 521 174 Hop . | . . . . Pick Up 30 | 6 14 8 2 Fast Attach 10 | 7 . . 3 Attach 4 | . 1 3 . Detach . | . . . . Swap 23 | . 6 10 7 Drop 22 | . 12 8 2 Fire 82 | 1 51 22 8 Melee 2 | . . . 2 Ram . | . . . . Kick . | . . . . Crush 1 | . 1 . . Escape Stasis . | . . . . Rewire . | . . . . Trap . | . . . . Miscellaneous 10 | . . . 10 Route ------- -11/Scrapyard -10/Materials (discovered 4 exits: [*Mat] / [*Min x2] / [*Sub]) -10/Subcaves (discovered 2 exits: *Mat / Rec) -8/Materials History --------- Turn | Location | Event 12 | -11/Scrapyard | Discovered new exit (range 15) 78 | -11/Scrapyard | Entered Materials 315 | -10/Materials | Build established: Mutant 674 | -10/Materials | Discovered new exit (range 16) 1129 | -10/Materials | Discovered new exit (range 16) 1242 | -10/Materials | Discovered new exit (range 12) 1445 | -10/Materials | Central database locked down 1469 | -10/Materials | Discovered new exit (range 10) 1484 | -10/Materials | Entered Subcaves 1485 | -10/Subcaves | Approached by a straggling Scientist 1645 | -10/Subcaves | A swath of the cavern ceiling suddenly collapsed 1708 | -10/Subcaves | Shifting Twisted Machinery released Sub. Power Source 1825 | -10/Subcaves | Learned location of Zion (-7) 1923 | -10/Subcaves | Core integrity fell below 50% 2050 | -10/Subcaves | Shifting Twisted Machinery released Sub. Power Source 2055 | -10/Subcaves | Shifting Twisted Machinery released Sub. Power Source 2196 | -10/Subcaves | Ambushed by Subdweller buried in earth 2278 | -10/Subcaves | Identified exit to Recycling 2316 | -10/Subcaves | Discovered new exit (range 15) 2361 | -10/Subcaves | Shifting Twisted Machinery released Flamer 2441 | -10/Subcaves | Entered Materials 2441 | -8/Materials | Evolved 4 slots: Power x1, Propulsion x1, Utility x2 2771 | -8/Materials | Self-destructed Last Messages --------------- 02712_ O-16 Technician: "IFF HANDSHAKE FAILED. SECURING TERMINAL." 02713_ Destroyed Hover Unit. 02714_ O-16 Technician uses terminal to summon reinforcements. 02714_ ALERT: Hostiles spotted, dispatching reinforcements to Terminal M009. 02714_ O-16 Technician locks terminal. 02747_ K-01 Serf collects debris. 02754_ Triggered Alarm Trap. 02754_ An alarm sounds. 02754_ ALERT: Alarm triggered, dispatching investigation squad. 02762_ U-05 Engineer lays Concrete. 02766_ C-30 ARC bursts open, deploying its payload. 02766_ H-55 Commando unfolds itself. 02766_ Penetrated by Slug. 02767_ U-05 Engineer lays Concrete. 02767_ Penetrated by Slug. 02767_ Knocked back. 02768_ U-05 Engineer lays Concrete. 02771_ Penetrated by Slug. 02771_ Flamer destroyed. 02771_ Hover Unit destroyed. Map ----- +----------------------------------------------------+ | #??????##########????????????????????????????????? | | ######## !!#????????????????????????????????? | | ## # !!#????????????????????????????????? | | # #????????????????????????????????? | | + """ #????????????????????????????????? | | # """"" #?? #????????????????????????????? | | ## # """"" # ####?????????????????????????? | | ### ## """"" + ??????????????????? | | # ## """ # ??????????????????? | | " # ## #?? ??????????????????? | | " # ###########????#########???????????????????? | | " # ??????????????????????????????? | | + ??????????????????????????????? | | # ??????????????????????????????? | | # #############??????????????????????????????? | | # # ########???????????????????????????? | | ! # # # #???????????????????????????? | | ### + / # """ #???????????????????????????? | | ??# # + "T" #???????????????????????????? | | ??# ######### #???????????????????????????? | | ?## ######### #???????????????????????????? | | ?# """ #[ #??###??????????????????????? | | ?# "T" # """ ####;####???????????????????? | | ?# + """ ##[[!!!!#???????????????????? | | ?# """ # """ ##[[!!!!#???????????????????? | | ?# """ t # ## @ #??????????k????????? | | ## """ ######### % ### #?????????????? | | a "%" ????????? | | u r s " ????????? | | u s u ????????? | | ############+########s### ######## ##????????? | | ?????????? ????? ??# #????????? #?????????? | | ????????"" """ ""??# ??# #????????????????????? | | ?????? """ """ """ # ??# #????????????????????? | | ?????# """ """ """ # ??# #????????????????????? | | ?????? #* ??# #????????????????????? | | ?????# # ???# #????????????????????? | | ?????############+## ???# g#????????????????????? | | ???????????????????##???# #????????????????????? | | ????????????????????????? #????????????????????? | | ????????????????????????? g#????????????????????? | | ????????????????????????? ????????????????????? | | ????????????????????????? ?????????????????????? | | ??????????????????????????H??????????????????????? | | ?????????????????????????????????????????????????? | | ?????????????????????????????????????????????????? | | ?????????????????????????????????????????????????? | | ?????????????????????????????????????????????????? | | ?????????????????????????????????????????????????? | | ?????????????????????????????????????????????????? | +----------------------------------------------------+ Best States ------------- Heat Dissipation 31 Energy Generation 19 Energy Capacity 200 Matter Stores 300 Matter Capacity 300 Sight Range 16 Robot Scan Range 15 Terrain Scan Density 10 Evasion (%) 54 Recoil Reduction 2 Offensive Hacking 10 Item Schematics ----------------- Grenade Launcher | -10/Materials | Hacked Hover Unit | -10/Materials | Hacked Mining Laser | -10/Materials | Hacked Sensor Array | -10/Materials | Hacked Datajack | -10/Materials | Hacked Huge Storage Unit | -10/Materials | Hacked Med. Storage Unit | -10/Materials | Hacked Robot Schematics ------------------ None Fabricated ------------ Nothing Repaired ---------- Nothing Studied --------- None Alien Tech Used ----------------- None Achievements -------------- Do Not Disturb Dramatic Entrance Challenges ------------ None Game ------ Seed PlatingConstructGuard Manual? 0 Play Time 00:56:11 Cumulative 28.7 hours Start 2026.03.11 @ 16:13:17 End 2026.03.11 @ 17:27:30 Sessions 1 Manual Loads 0 Difficulty Rogue Special Mode None Game No. 26 Rogue 22 Adventurer 4 Explorer 0 Win Type - Total 0 Types 0/0/0/0/0/0/0/0/0/0 Lore% 12 Gallery% 19 Achievement% 20 Wizard Run 0 Options --------- Layout 0 ASCII 0 Keyboard 1 Movement Arrows Keybinds 0 Fullscreen 2 Font 32/CogWide Map View 78x50 Zoom Use 0% Tactical HUD 1 Map Filters NONE Filters NONE Steam 1 RUN: fe7794d3-d97e-4770-95c0-fb9cc25078dc